bitfinex-derivatives/quotes_SOLF0:USTF0_20250907
["timestamp","ask_amount","ask_price","bid_price","bid_amount"]
[1757288025074,1.47384953,207.4,207.34,1.47384953]
[1757288025883,1.47384953,207.4,207.35,7.64]
[1757288026083,1.47384953,207.4,207.34,1.47384953]
[1757288026285,1.47384953,207.4,207.35,7.64]
[1757288026488,1.47384953,207.4,207.34,1.47384953]
[1757288026685,1.47384953,207.4,207.35,7.64]
[1757288026991,1.47384953,207.4,207.34,1.47384953]
[1757288027388,1.47384953,207.4,207.35,7.64]
[1757288027783,1.47384953,207.4,207.34,1.47384953]
[1757288028191,1.47384953,207.4,207.35,7.64]
[1757288028389,1.47384953,207.4,207.34,1.47384953]
[1757288028891,1.47384953,207.4,207.35,7.64]
[1757288029087,1.47384953,207.4,207.34,1.47384953]
[1757288029689,1.47384953,207.4,207.35,7.64]
[1757288029889,1.47384953,207.4,207.34,1.47384953]
[1757288030588,1.47384953,207.4,207.35,7.64]
[1757288031794,1.47384953,207.4,207.34,1.47384953]
[1757288031995,1.47384953,207.4,207.29,7.64]
[1757288032195,1.47384953,207.4,207.35,7.64]
[1757288032392,1.47384953,207.4,207.34,1.47384953]
[1757288032594,1.47384953,207.4,207.35,7.64]
[1757288032994,8.78384953,207.42,207.35,7.64]
[1757288033206,8.78384953,207.42,207.37,7.64]
[1757288033397,8.78384953,207.42,207.36,9.11384953]
[1757288034902,8.78384953,207.42,207.36,7.64]
[1757288038400,1.47384953,207.4,207.34,7.64]
[1757288039103,7.31,207.41,207.34,7.64]
[1757288039104,1.47384953,207.36,207.34,7.64]
[1757288039309,8.78384953,207.36,207.34,7.64]
[1757288039806,8.78384953,207.36,207.29,1.47384953]
[1757288040007,8.78384953,207.36,207.3,11.85839539]
[1757288040208,8.78384953,207.36,207.3,7.64]
[1757288045005,7.31,207.36,207.3,7.64]
[1757288045201,1.47384953,207.35,207.3,7.64]
[1757288045406,1.47384953,207.35,207.29,7.63]
[1757288049012,9.39384953,207.41,207.35,7.63]
[1757288049713,1.47384953,207.39,207.34,7.63]
[1757288050414,1.47384953,207.39,207.33,1.47384953]
[1757288050617,9.39384953,207.41,207.35,7.63]
[1757288050913,9.39384953,207.41,207.35,9.10384953]
[1757288051215,9.39384953,207.41,207.35,7.63]
[1757288052313,1.47384953,207.37,207.26,7.63]
[1757288052513,1.47384953,207.37,207.29,7.63]
[1757288052514,1.47384953,207.35,207.29,7.63]
[1757288052713,1.47384953,207.33,207.29,7.63]
[1757288053014,1.47384953,207.33,207.26,1.47384953]
[1757288053015,1.47384953,207.33,207.27,7.63]
[1757288053211,1.47384953,207.33,207.29,7.63]
[1757288053417,1.47384953,207.33,207.27,7.63]
[1757288053617,1.47384953,207.33,207.28,8.65980364]
[1757288053817,1.47384953,207.33,207.27,7.63]
[1757288054009,1.47384953,207.33,207.29,7.63]
[1757288054314,1.47384953,207.33,207.27,7.63]
[1757288054508,1.47384953,207.33,207.29,7.63]
[1757288054713,1.47384953,207.33,207.27,7.63]
[1757288054914,1.47384953,207.33,207.26,1.47384953]
[1757288054915,1.47384953,207.33,207.28,8.65949833]
[1757288055108,1.47384953,207.33,207.27,7.63]
[1757288055304,1.47384953,207.33,207.26,1.47384953]
[1757288055305,1.47384953,207.33,207.29,7.63]
[1757288055506,1.47384953,207.33,207.27,7.63]
[1757288055704,1.47384953,207.33,207.28,8.65803476]
[1757288055914,1.47384953,207.33,207.27,7.63]
[1757288056107,1.47384953,207.33,207.29,7.63]
[1757288056308,1.47384953,207.33,207.27,7.63]
[1757288056512,1.47384953,207.33,207.29,7.63]
[1757288056712,1.47384953,207.33,207.27,7.63]
[1757288056913,1.47384953,207.33,207.28,8.65899618]
[1757288057110,1.47384953,207.33,207.29,4.225138]
[1757288057319,9.39384953,207.33,207.27,7.63]
[1757288057512,9.39384953,207.33,207.29,7.63]
[1757288057709,9.39384953,207.33,207.27,7.63]
[1757288057921,9.39384953,207.33,207.28,8.661001]
[1757288058117,9.39384953,207.33,207.27,7.63]
[1757288058318,9.39384953,207.33,207.28,8.66266195]
[1757288058516,9.39384953,207.33,207.27,7.63]
[1757288058711,9.39384953,207.33,207.28,8.66366558]
[1757288058916,9.39384953,207.33,207.27,7.63]
[1757288059215,9.39384953,207.33,207.28,8.66377814]
[1757288059412,9.39384953,207.33,207.26,1.47384953]
[1757288059714,9.39384953,207.33,207.27,8.6662979]
[1757288059914,1.47384953,207.35,207.29,7.63]
[1757288062624,1.47384953,207.37,207.3,1.47384953]
[1757288062915,1.47384953,207.37,207.23,119.22]
[1757288062916,1.47384953,207.38,207.32,1.47384953]
[1757288063220,1.47384953,207.39,207.33,7.63]
[1757288064919,7.92,207.41,207.33,7.63]
[1757288065110,1.47384953,207.39,207.33,7.63]
[1757288066022,1.47384953,207.37,207.33,7.63]
[1757288066221,7.92,207.36,207.33,7.63]
[1757288066429,1.47384953,207.37,207.32,1.47384953]
[1757288066718,1.58397239,207.49,207.37,14.46]
[1757288066918,1.47384953,207.6,207.48,1.47384953]
[1757288066919,9.39384953,207.6,207.48,1.47384953]
[1757288067117,7.92,207.6,207.5,1.47384953]
[1757288067314,1.47384953,207.59,207.51,8.66411175]
[1757288067621,1.47384953,207.59,207.5,1.47384953]
[1757288067622,1.47384953,207.59,207.52,8.66411175]
[1757288067822,7.92,207.6,207.53,8.66411175]
[1757288068019,7.92,207.6,207.42,4.013083]
[1757288068020,7.92,207.58,207.54,8.66411175]
[1757288068224,1.47384953,207.59,207.55,8.66411175]
[1757288068422,1.47384953,207.59,207.52,1.47384953]
[1757288068423,1.47384953,207.59,207.56,4.21685381]
[1757288068621,1.47384953,207.59,207.49,10.06]
[1757288068622,7.92,207.6,207.57,4.21685381]
[1757288068817,7.92,207.6,207.58,4.21685381]
[1757288069021,7.92,207.6,207.59,4.82669224]
[1757288069224,7.92,207.6,207.59,10.1854059]
[1757288069425,8.92,207.68,207.59,10.1854059]
[1757288069426,7.92,207.67,207.59,10.1854059]
[1757288069622,1.47384953,207.65,207.6,10.17746789]
[1757288069819,7.92,207.64,207.58,1.47384953]
[1757288070019,1.47384953,207.65,207.59,10.16988975]
[1757288070225,7.92,207.64,207.58,1.47384953]
[1757288070428,7.92,207.65,207.59,10.15700196]
[1757288070721,1.47384953,207.66,207.6,10.15700196]
[1757288070915,1.47384953,207.66,207.61,4.81287338]
[1757288071119,7.92,207.65,207.6,1.47384953]
[1757288071323,7.92,207.65,207.61,10.14899816]
[1757288071523,7.92,207.68,207.62,11.62284769]
[1757288071718,7.92,207.69,207.63,10.14022796]
[1757288071922,1.47384953,207.68,207.62,1.47384953]
[1757288073426,7.92,207.69,207.62,1.47384953]
[1757288073427,7.92,207.67,207.63,4.79352181]
[1757288073620,7.92,207.68,207.62,1.47384953]
[1757288073827,7.92,207.68,207.63,4.79335712]
[1757288074028,1.47384953,207.69,207.64,4.79260214]
[1757288074227,7.92,207.68,207.62,1.47384953]
[1757288074426,1.47384953,207.69,207.63,10.1061841]
[1757288074627,1.47384953,207.69,207.64,10.1061841]
[1757288074824,7.92,207.68,207.62,1.47384953]
[1757288075023,7.96,207.68,207.63,10.10713292]
[1757288075224,7.96,207.68,207.64,10.10713292]
[1757288075424,7.96,207.68,207.62,1.47384953]
[1757288075629,1.47384953,207.67,207.63,10.09778517]
[1757288075825,7.96,207.66,207.47,105.23869476]
[1757288076024,7.96,207.75,207.65,1.47384953]
[1757288076231,7.96,207.73,207.67,1.47384953]
[1757288076431,7.96,207.73,207.68,10.100126]
[1757288076636,9.43384953,207.74,207.67,1.47384953]
[1757288077028,9.43384953,207.74,207.68,10.08000945]
[1757288077230,9.43384953,207.74,207.66,1.47384953]
[1757288077432,9.43384953,207.74,207.67,10.06708687]
[1757288077729,9.43384953,207.74,207.68,10.06708687]
[1757288077925,9.43384953,207.74,207.66,1.47384953]
[1757288078232,9.43384953,207.74,207.67,4.7686452]
[1757288078422,7.96,207.74,207.68,4.7686452]
[1757288078731,7.96,207.74,207.63,2.29654472]
[1757288078922,7.96,207.74,207.64,9.83496003]
[1757288079129,7.96,207.74,207.65,9.83496003]
[1757288079324,7.96,207.74,207.66,4.76402497]
[1757288079623,7.96,207.68,207.54,2.29654472]
[1757288079830,7.96,207.65,207.55,9.8355695]
[1757288080032,7.96,207.65,207.56,9.8355695]
[1757288080228,7.96,207.65,207.57,9.8355695]
[1757288080433,7.96,207.65,207.54,2.29654472]
[1757288080631,7.96,207.65,207.55,5.01198875]
[1757288080936,7.96,207.65,207.56,5.01198875]
[1757288081132,7.96,207.65,207.53,2.29654472]
[1757288081328,7.96,207.65,207.54,5.01115384]
[1757288081636,7.96,207.65,207.55,5.01115384]
[1757288081834,7.96,207.65,207.56,5.01115384]
[1757288082048,7.96,207.65,207.53,2.29654472]
[1757288082234,7.96,207.65,207.54,5.01170945]
[1757288082434,7.96,207.65,207.55,5.01170945]
[1757288082735,7.96,207.65,207.56,5.01170945]
[1757288082930,9.74,207.69,207.47,101.24735806]
[1757288082931,2.29654472,207.62,207.5,2.29654472]
[1757288083141,7.96,207.61,207.51,5.01213395]
[1757288083337,7.96,207.61,207.52,5.01213395]
[1757288083535,7.96,207.61,207.53,5.01213395]
[1757288083834,7.96,207.61,207.52,2.29654472]
[1757288084037,7.96,207.61,207.53,5.01113598]
[1757288084244,7.96,207.61,207.52,2.29654472]
[1757288084436,7.96,207.61,207.53,5.0106843]
[1757288084636,7.96,207.61,207.52,2.29654472]
[1757288084838,7.96,207.61,207.53,5.01068036]
[1757288085034,7.96,207.61,207.52,2.29654472]
[1757288085235,7.96,207.61,207.53,5.01068056]
[1757288085439,7.96,207.61,207.54,5.01068056]
[1757288085640,7.96,207.61,207.52,2.29654472]
[1757288085838,7.96,207.61,207.53,5.00758762]
[1757288086033,7.96,207.61,207.54,5.00758762]
[1757288086240,7.96,207.61,207.52,2.29654472]
[1757288086538,7.96,207.61,207.53,5.01316454]
[1757288086738,7.96,207.61,207.54,5.01316454]
[1757288087042,7.96,207.58,207.49,2.29654472]
[1757288087240,2.29654472,207.56,207.5,5.01403389]
[1757288087442,2.29654472,207.56,207.44,2.29654472]
[1757288087640,2.29654472,207.56,207.45,5.01744309]
[1757288087840,7.96,207.55,207.46,5.01744309]
[1757288088039,7.96,207.55,207.47,5.01744309]
[1757288088245,7.96,207.55,207.48,5.01744309]
[1757288088438,7.96,207.55,207.49,5.01744309]
[1757288088641,7.96,207.55,207.5,5.01744309]
[1757288088839,7.96,207.55,207.44,2.29654472]
[1757288089141,7.96,207.55,207.45,5.01717384]
[1757288089344,7.96,207.55,207.46,5.01717384]
[1757288089640,2.29654472,207.5,207.38,324.28]
[1757288089836,7.96,207.49,207.39,4.80470234]
[1757288090035,7.96,207.49,207.38,324.28]
[1757288090233,7.96,207.49,207.39,4.80565329]
[1757288090438,7.96,207.49,207.38,324.28]
[1757288090640,7.96,207.49,207.39,4.80651419]
[1757288090839,7.96,207.49,207.38,324.28]
[1757288091033,7.96,207.49,207.39,4.80640224]
[1757288091340,7.96,207.49,207.31,0.838433]
[1757288091643,10.25654472,207.49,207.36,2.29654472]
[1757288091844,10.25654472,207.49,207.37,4.80771952]
[1757288092037,10.25654472,207.49,207.38,4.80771952]
[1757288092237,10.25654472,207.49,207.36,2.29654472]
[1757288092437,10.25654472,207.49,207.37,4.80805057]
[1757288092638,10.25654472,207.49,207.38,4.80805057]
[1757288092839,10.25654472,207.49,207.36,2.29654472]
[1757288093040,10.25654472,207.49,207.37,4.80691534]
[1757288093237,10.25654472,207.49,207.38,4.80691534]
[1757288093440,10.25654472,207.49,207.36,2.29654472]
[1757288093643,10.25654472,207.49,207.37,4.80808421]
[1757288093837,10.25654472,207.49,207.38,4.80808421]
[1757288094145,10.25654472,207.49,207.39,4.80783536]
[1757288094347,10.25654472,207.49,207.36,2.29654472]
[1757288094547,10.25654472,207.49,207.37,4.80914105]
[1757288094844,10.25654472,207.49,207.36,2.29654472]
[1757288095048,10.25654472,207.49,207.37,4.80860205]
[1757288095240,10.25654472,207.49,207.38,4.80860205]
[1757288095436,10.25654472,207.49,207.39,4.80860205]
[1757288095742,10.25654472,207.49,207.36,2.29654472]
[1757288095937,10.25654472,207.49,207.37,4.80686798]
[1757288096149,10.25654472,207.49,207.38,4.80686798]
[1757288096349,10.25654472,207.49,207.39,4.80686798]
[1757288096547,10.25654472,207.49,207.36,2.29654472]
[1757288096749,10.25654472,207.49,207.37,9.16183408]
[1757288097048,10.25654472,207.49,207.36,2.29654472]
[1757288097049,10.25654472,207.49,207.38,4.8141867]
[1757288097242,10.25654472,207.49,207.39,4.8141867]
[1757288097439,10.25654472,207.49,207.36,2.29654472]
[1757288097645,10.25654472,207.49,207.37,9.1619306]
[1757288097845,10.25654472,207.49,207.38,4.81424619]
[1757288098047,7.96,207.49,207.39,4.81424619]
[1757288098244,7.96,207.49,207.36,2.29654472]
[1757288098445,7.96,207.49,207.37,4.81037994]
[1757288098649,7.96,207.49,207.38,4.81037994]
[1757288098853,7.96,207.49,207.39,4.81037994]
[1757288099058,7.96,207.49,207.36,2.29654472]
[1757288099352,7.96,207.49,207.39,2.29654472]
[1757288099553,7.96,207.49,207.4,9.16025322]
[1757288099746,7.96,207.49,207.41,9.16025322]
[1757288100042,7.96,207.49,207.42,4.8108975]
[1757288100242,7.96,207.49,207.39,2.29654472]
[1757288100443,7.96,207.49,207.4,9.1609194]
[1757288100665,7.96,207.49,207.39,2.29654472]
[1757288100666,7.96,207.49,207.41,4.8111376]
[1757288100843,7.96,207.49,207.42,4.8111376]
[1757288101043,7.96,207.49,207.37,2.29654472]
[1757288101249,7.96,207.49,207.38,4.8167593]
[1757288101448,7.96,207.46,207.37,2.29654472]
[1757288103253,7.96,207.46,207.34,2.29654472]
[1757288103452,7.96,207.46,207.35,4.36336929]
[1757288103647,7.96,207.46,207.36,4.36336929]
[1757288103852,7.96,207.43,207.31,0.838433]
[1757288104057,7.96,207.43,207.32,4.36670671]
[1757288104356,7.96,207.43,207.31,3.13497772]
[1757288104558,7.96,207.43,207.32,4.3668782]
[1757288104756,7.96,207.43,207.31,3.13497772]
[1757288105057,7.96,207.43,207.32,4.36491828]
[1757288105258,7.96,207.43,207.31,3.13497772]
[1757288105453,7.96,207.43,207.32,4.36665391]
[1757288105651,7.96,207.43,207.31,3.13497772]
[1757288105858,7.96,207.43,207.32,4.36666825]
[1757288106052,7.96,207.43,207.31,3.13497772]
[1757288106355,7.96,207.43,207.34,2.29654472]
[1757288106555,7.96,207.43,207.35,4.36666825]
[1757288106755,7.96,207.43,207.34,2.29654472]
[1757288109561,7.96,207.43,207.31,0.838433]
[1757288109751,7.96,207.43,207.32,8.99531911]
[1757288109951,7.96,207.43,207.33,4.37396277]
[1757288110152,2.29654472,207.41,207.31,0.838433]
[1757288110355,7.89,207.4,207.31,0.838433]
[1757288111662,7.89,207.4,207.32,4.37232136]
[1757288111959,7.89,207.4,207.31,0.838433]
[1757288112160,7.89,207.4,207.32,4.3729052]
[1757288112365,7.89,207.4,207.31,0.838433]
[1757288112658,7.89,207.4,207.32,4.37153457]
[1757288112855,7.89,207.4,207.31,0.838433]
[1757288115464,7.89,207.4,207.32,6.66833337]
[1757288115660,7.89,207.4,207.32,2.29654472]
[1757288117759,2.29654472,207.48,207.35,2.29654472]
[1757288118064,7.89,207.44,207.34,2.29654472]
[1757288120064,7.89,207.44,207.31,3.13497772]
[1757288120562,2.29654472,207.43,207.31,3.13497772]
[1757288120763,7.89,207.42,207.31,3.13497772]
[1757288121262,7.89,207.42,207.32,4.38300158]
[1757288121465,7.89,207.42,207.31,3.13497772]
[1757288121654,7.89,207.42,207.32,4.38300072]
[1757288121861,7.89,207.42,207.31,3.13497772]
[1757288122067,7.89,207.42,207.32,4.38300115]
[1757288122267,7.89,207.42,207.31,3.13497772]
[1757288122462,7.89,207.42,207.32,4.38650219]
[1757288122661,7.89,207.42,207.31,3.13497772]
[1757288122966,7.89,207.42,207.32,4.3899931]
[1757288123164,7.89,207.42,207.31,3.13497772]
[1757288123363,7.89,207.42,207.32,9.02909069]
[1757288123565,7.89,207.42,207.33,4.39014989]
[1757288123762,7.89,207.42,207.31,3.13497772]
[1757288123964,7.89,207.42,207.32,9.03304186]
[1757288124163,7.89,207.42,207.33,4.39410151]
[1757288124465,7.89,207.42,207.34,4.39410151]
[1757288124765,7.89,207.42,207.31,3.13497772]
[1757288124964,7.89,207.42,207.32,13.08401007]
[1757288125158,7.89,207.42,207.33,13.08401007]
[1757288125362,7.89,207.42,207.34,9.04303355]
[1757288125663,7.89,207.42,207.31,3.13497772]
[1757288125861,7.89,207.42,207.32,12.97218543]
[1757288126066,7.89,207.42,207.33,12.97218543]
[1757288126267,7.89,207.42,207.34,12.97724102]
[1757288126468,7.89,207.42,207.35,4.64651182]
[1757288126767,7.89,207.42,207.31,3.13497772]
[1757288126968,7.89,207.42,207.32,12.98051238]
[1757288127163,7.89,207.42,207.33,12.98051238]
[1757288127361,7.89,207.42,207.34,12.98051238]
[1757288127563,7.89,207.42,207.35,4.6494924]
[1757288127762,7.89,207.42,207.31,3.13497772]
[1757288127961,7.89,207.42,207.32,12.99012403]
[1757288128169,7.89,207.42,207.33,4.65293308]
[1757288128466,7.89,207.42,207.34,12.99497432]
[1757288128767,7.89,207.42,207.31,3.13497772]
[1757288128968,7.89,207.42,207.32,12.95997395]
[1757288129171,7.89,207.42,207.33,12.95997395]
[1757288129469,7.89,207.42,207.34,12.95997395]
[1757288129661,7.89,207.42,207.35,8.67152969]
[1757288129867,7.89,207.42,207.31,3.13497772]
[1757288130168,7.89,207.42,207.32,12.96831919]
[1757288130366,7.89,207.42,207.33,12.96831919]
[1757288130563,7.89,207.42,207.34,12.96831919]
[1757288130764,2.29654472,207.43,207.35,12.96831919]
[1757288130969,7.89,207.42,207.36,4.62066664]
[1757288131163,7.89,207.42,207.31,4.851516]
[1757288131470,7.89,207.42,207.27,22.72]
[1757288131471,2.29654472,207.4,207.32,12.99133287]
[1757288131676,7.89,207.39,207.28,0.83956574]
[1757288131868,7.89,207.39,207.29,3.93546526]
[1757288132069,7.89,207.39,207.3,3.93546526]
[1757288132373,2.29654472,207.37,207.31,3.93775296]
[1757288132571,7.89,207.36,207.28,0.83956574]
[1757288132770,7.89,207.36,207.29,3.83582302]
[1757288132966,7.89,207.36,207.3,3.83582302]
[1757288133170,7.89,207.36,207.28,3.13611046]
[1757288133471,7.89,207.36,207.29,3.8356138]
[1757288133672,7.89,207.36,207.3,3.8356138]
[1757288133872,7.89,207.36,207.28,3.13611046]
[1757288134073,7.89,207.36,207.29,3.83802843]
[1757288134368,7.89,207.36,207.3,3.83802843]
[1757288134574,7.89,207.36,207.28,3.13611046]
[1757288134871,7.89,207.36,207.29,3.83832915]
[1757288135072,7.89,207.36,207.3,3.83832915]
[1757288135268,7.89,207.36,207.28,3.13611046]
[1757288135473,7.89,207.36,207.29,3.83815197]
[1757288135672,7.89,207.36,207.3,3.83815197]
[1757288135969,7.89,207.36,207.31,3.83815197]
[1757288136170,7.53,207.39,207.28,3.13611046]
[1757288136372,7.53,207.39,207.29,3.83843179]
[1757288136569,7.53,207.39,207.3,3.83843179]
[1757288136769,7.53,207.39,207.28,3.13611046]
[1757288137074,7.53,207.39,207.29,3.83937632]
[1757288137273,7.53,207.39,207.3,3.83937632]
[1757288137573,7.53,207.39,207.28,3.13611046]
[1757288137771,7.53,207.39,207.29,3.83918916]
[1757288138073,7.53,207.39,207.3,3.83918916]
[1757288138370,7.53,207.39,207.28,3.13611046]
[1757288138677,7.53,207.39,207.29,3.83984229]
[1757288138973,7.53,207.39,207.28,3.13611046]
[1757288139174,7.53,207.39,207.29,3.82491459]
[1757288139372,7.53,207.39,207.28,3.13611046]
[1757288139574,7.53,207.39,207.29,3.82542762]
[1757288139773,7.53,207.39,207.28,3.13611046]
[1757288140075,7.53,207.39,207.29,3.82576162]
[1757288140273,7.53,207.39,207.31,1.47483292]
[1757288140478,7.53,207.37,207.31,1.47483292]
[1757288145068,7.53,207.39,207.33,1.47483292]
[1757288145976,7.53,207.39,207.32,1.47483292]
[1757288147179,7.53,207.37,207.32,1.47483292]
[1757288147378,7.53,207.37,207.3,1.47483292]
[1757288147586,8.089153,207.4,207.3,1.47483292]
[1757288147879,1.47483292,207.36,207.3,1.47483292]
[1757288148178,7.53,207.36,207.3,1.47483292]
[1757288149377,1.47483292,207.39,207.32,1.47483292]
[1757288149583,7.53,207.38,207.32,1.47483292]
[1757288151479,7.53,207.38,207.28,0.83956574]
[1757288151682,7.53,207.38,207.31,1.47483292]
[1757288151872,7.53,207.38,207.28,0.83956574]
[1757288152075,7.53,207.36,207.29,5.30334989]
[1757288152275,7.53,207.36,207.3,3.82851697]
[1757288152475,7.53,207.36,207.29,1.47483292]
[1757288152675,7.53,207.36,207.3,3.8299745]
[1757288152873,7.53,207.36,207.29,1.47483292]
[1757288153078,7.53,207.36,207.3,3.82997149]
[1757288153280,1.47483292,207.37,207.31,1.47483292]
[1757288153681,7.53,207.36,207.31,1.47483292]
[1757288153883,7.53,207.38,207.31,1.47483292]
[1757288155580,8.089153,207.42,207.28,0.83956574]
[1757288155786,15.619153,207.43,207.37,1.47483292]
[1757288155984,7.53,207.43,207.37,1.47483292]
[1757288156284,9.00483292,207.43,207.37,1.47483292]
[1757288157392,9.00483292,207.43,207.29,4.05483553]
[1757288157692,7.53,207.38,207.32,1.47483292]
[1757288157884,8.089153,207.43,207.36,1.47483292]
[1757288158088,7.53,207.43,207.38,1.47483292]
[1757288158284,9.00483292,207.43,207.36,1.47483292]
[1757288159181,7.53,207.44,207.38,1.47483292]
[1757288159783,7.53,207.44,207.3,4.05483553]
[1757288159991,7.53,207.44,207.38,1.47483292]
[1757288160990,7.53,207.42,207.29,4.05483553]
[1757288161191,7.53,207.42,207.36,1.47483292]
[1757288163599,7.53,207.43,207.38,1.47483292]
[1757288163791,1.47483292,207.44,207.38,1.47483292]
[1757288164298,7.53,207.43,207.38,1.47483292]
[1757288164595,7.53,207.44,207.28,4.89440127]
[1757288164794,7.53,207.44,207.38,1.47483292]
[1757288165400,7.47,207.45,207.4,1.47483292]
[1757288165601,7.47,207.48,207.42,1.47483292]
[1757288166294,8.94483292,207.49,207.42,1.47483292]
[1757288166597,7.47,207.44,207.38,1.47483292]
[1757288173291,7.47,207.42,207.36,1.47483292]
[1757288175099,1.47483292,207.41,207.36,1.47483292]
[1757288175697,7.47,207.4,207.36,1.47483292]
[1757288176199,1.47483292,207.41,207.36,1.47483292]
[1757288176999,7.47,207.4,207.36,1.47483292]
[1757288177901,1.47483292,207.41,207.36,1.47483292]
[1757288178301,7.47,207.4,207.36,1.47483292]
[1757288178504,7.47,207.4,207.34,1.47483292]
[1757288180005,7.47,207.4,207.28,0.83956574]
[1757288180196,7.47,207.41,207.35,1.47483292]
[1757288182610,7.47,207.41,207.28,0.83956574]
[1757288182825,7.47,207.41,207.35,1.47483292]
[1757288187312,1.47483292,207.4,207.35,1.47483292]
[1757288187513,7.47,207.39,207.35,1.47483292]
[1757288187813,1.47483292,207.4,207.35,1.47483292]
[1757288188612,7.47,207.39,207.35,1.47483292]
[1757288188808,1.47483292,207.4,207.35,1.47483292]
[1757288189312,7.47,207.39,207.35,1.47483292]
[1757288189708,7.47,207.39,207.32,1.47483292]
[1757288189909,1.47483292,207.38,207.32,1.47483292]
[1757288190113,7.47,207.37,207.32,1.47483292]
[1757288190510,1.47483292,207.38,207.32,1.47483292]
[1757288190709,7.47,207.37,207.32,1.47483292]
[1757288190909,7.47,207.35,207.28,0.83956574]
[1757288191111,1.47483292,207.36,207.3,1.47483292]
[1757288191511,7.47,207.35,207.3,1.47483292]
[1757288191713,1.47483292,207.36,207.3,1.47483292]
[1757288192013,7.47,207.35,207.3,1.47483292]
[1757288192207,7.47,207.35,207.28,2.31439866]
[1757288192615,7.47,207.33,207.21,120.02]
[1757288192808,7.47,207.33,207.27,1.47483292]
[1757288193223,1.47483292,207.32,207.27,1.47483292]
[1757288194215,7.47,207.31,207.27,1.47483292]
[1757288194610,1.47483292,207.32,207.27,1.47483292]
[1757288195008,7.47,207.31,207.26,1.47483292]
[1757288195216,7.39,207.31,207.25,2.31456073]
[1757288195414,7.39,207.31,207.25,0.83972781]
[1757288195612,7.39,207.31,207.25,2.31456073]
[1757288195812,7.39,207.31,207.25,0.83972781]
[1757288196014,7.39,207.31,207.25,2.31456073]
[1757288196814,8.86483292,207.31,207.25,2.31456073]
[1757288197324,1.47483292,207.29,207.23,1.47483292]
[1757288197514,7.39,207.28,207.23,1.47483292]
[1757288197911,7.39,207.28,207.22,1.47483292]
[1757288198710,7.39,207.28,207.21,1.47483292]
[1757288199218,7.39,207.28,207.2,0.83988995]
[1757288199415,7.39,207.28,207.21,1.47483292]
[1757288199807,7.39,207.26,207.21,1.47483292]
[1757288200006,1.47483292,207.27,207.21,1.47483292]
[1757288200206,7.39,207.26,207.2,0.83988995]
[1757288200415,7.39,207.26,207.2,2.31472287]
[1757288200813,7.39,207.26,207.2,0.83988995]
[1757288201011,7.39,207.33,207.25,1.47483292]
[1757288201213,8.86483292,207.33,207.25,1.47483292]
[1757288201414,1.47483292,207.31,207.25,1.47483292]
[1757288201618,7.39,207.3,207.25,1.47483292]
[1757288202112,7.39,207.31,207.27,1.47483292]
[1757288202319,7.39,207.34,207.25,2.30501859]
[1757288202514,7.39,207.34,207.26,2.30501859]
[1757288203022,7.39,207.39,207.3,2.30501859]
[1757288205919,7.39,207.39,207.33,2.30501859]
[1757288209427,7.39,207.39,207.32,2.30501859]
[1757288215330,7.39,207.39,207.35,2.30501859]
[1757288215524,7.39,207.44,207.35,2.30501859]
[1757288217133,7.39,207.44,207.32,2.30501859]
[1757288218430,15.479153,207.44,207.32,2.30501859]
[1757288220528,2.30501859,207.4,207.22,324.28]
[1757288220735,7.39,207.39,207.28,2.30501859]
[1757288225138,15.479153,207.39,207.28,2.30501859]
[1757288226033,2.30501859,207.34,207.21,2.30501859]
[1757288226235,7.59,207.33,207.21,2.30501859]
[1757288227134,7.59,207.33,207.2,0.83988995]
[1757288227339,7.59,207.33,207.21,2.30501859]
[1757288232736,7.59,207.33,207.24,2.30501859]
[1757288233140,7.59,207.36,207.27,2.30501859]
[1757288233443,7.59,207.36,207.2,3.14490854]
[1757288233844,7.59,207.36,207.25,2.30501859]